fUST/lending_fUST_20251114
["ID","MTS","AMOUNT","RATE_DAILY","PERIOD"]
[393868257,1763051249786,-412.22769198,0.00079452,120]
[393868258,1763051249804,-184.68754335,0.00079452,120]
[393868259,1763051249829,-461.2485582,0.00079452,120]
[393868260,1763051249849,-177.5453823,0.00079452,120]
[393868261,1763051249869,-265.52931695,0.00079452,120]
[393868262,1763051249891,-342.65539098,0.00079452,120]
[393868263,1763051249912,-151.0,0.00079452,120]
[393868264,1763051249933,-376.53497356,0.00079452,120]
[393868265,1763051249954,-231.47779029,0.00079452,120]
[393868266,1763051249974,-313.96039456,0.00079452,120]
[393868267,1763051249995,-156.527824,0.00079452,120]
[393868268,1763051250017,-223.8946208,0.00079452,120]
[393868269,1763051250039,-500.0,0.00079452,120]
[393868270,1763051250061,-500.0,0.00079452,120]
[393868271,1763051250197,-500.0,0.00079452,120]
[393868272,1763051250220,-421.49787116,0.00079452,120]
[393868273,1763051250243,-417.49737715,0.00079452,120]
[393868274,1763051250263,-273.51866982,0.00079452,120]
[393868275,1763051250283,-441.79085967,0.00079452,120]
[393868276,1763051250308,-346.48237819,0.00079452,120]
[393868277,1763051250331,-375.0810147,0.00079452,120]
[393868278,1763051250352,-277.45986284,0.00079452,120]
[393868279,1763051268894,11325.0,0.00037878,31]
[393868283,1763051304621,265.3954088,0.0004,120]
[393868286,1763051314203,-5748.90659659,0.0004,120]
[393868287,1763051315766,2056.30456631,0.00035,15]
[393868294,1763051345653,300.0,0.00037877,2]
[393868295,1763051349693,170.87275101,0.00037878,120]
[393868296,1763051372771,265.967879,0.0003584,120]
[393868298,1763051404914,300.0,0.00037877,2]
[393868376,1763051437803,-11054.0,0.00037878,14]
[393868377,1763051437816,-37019.05158364,0.0004,120]
[393868378,1763051437828,-2352.42571294,0.0004,120]
[393868379,1763051437870,-57106.23395194,0.0004,120]
[393868380,1763051437880,-160.15,0.0004,7]
[393868381,1763051437889,-265.967879,0.00041813,120]
[393868382,1763051437899,-218.84137463,0.000427,120]
[393868383,1763051437908,-2932.0712832,0.00043,60]
[393868384,1763051437917,-157.85172897,0.00045,120]
[393868385,1763051437927,-209.89372342,0.00045,120]
[393868386,1763051437937,-221.85566631,0.00045,120]
[393868387,1763051437947,-265.967879,0.00047787,120]
[393868388,1763051437958,-226.04969714,0.00049,120]
[393868389,1763051437968,-176.18042109,0.00053,120]
[393868390,1763051437978,-265.967879,0.0005376,120]
[393868391,1763051437987,-167.18982305,0.00058,60]
[393868392,1763051437997,-302.39015288,0.0006,120]
[393868393,1763051438006,-150.0,0.00061,120]
[393868394,1763051438016,-430.45,0.0007,120]
[393868395,1763051438026,-203.139,0.00075,120]
[393868396,1763051438035,-89446.79191646,0.000767,120]
[393868397,1763051438047,-106185.4329364,0.000767,120]
[393868398,1763051438059,-539.74666124,0.000767,120]
[393868406,1763051439797,-91976.585337,0.000767,120]
[393868487,1763051442766,206.3448915,0.00037778,2]
[393868500,1763051445764,-3e-08,0.000767,120]
[393868501,1763051445818,-642.09620677,0.000767,120]
[393868536,1763051446468,-316219.7149895,0.000767,120]
[393868537,1763051446480,-1010.0,0.000767,120]
[393868539,1763051446857,-17156.557206,0.000767,120]
[393868556,1763051447207,-518.89927782,0.000767,120]
[393868586,1763051528406,174.0,0.00035,120]
[393868589,1763052094746,-281.69939483,0.00039998,5]
[393868590,1763052140528,-332.29085388,0.00039998,5]
[393868591,1763052143282,-338.31513513,0.00039998,5]
[393868592,1763052238666,-221.18733649,0.00039998,5]
[393868593,1763052304213,-26.50727967,0.00039998,5]
[393868594,1763052304235,-221.17310856,0.00039998,5]
[393868597,1763052379742,-299.99605063,0.00039998,4]
[393868598,1763052409776,-190.67417483,0.00039998,4]
[393868599,1763052439247,-157.21272931,0.00039899,2]
[393868600,1763052454680,-9.32977454,0.00039998,4]
[393868601,1763052454703,-317.98166249,0.00039999,4]
[393868751,1763052640341,-3e-08,0.00039998,4]
[393868752,1763052640356,-499.99999997,0.00039998,4]
[393868753,1763052640366,-252.6564926,0.00054157,2]
[393868754,1763052640375,-174.0,0.00056,120]
[393868755,1763052640385,-2000.0,0.0006,120]
[393868756,1763052640394,-157.087835,0.0006399,5]
[393868757,1763052640405,-3000.0,0.00065,120]
[393868758,1763052640414,-5000.0,0.0007,120]
[393868759,1763052640423,-4844.2069328,0.00070908,6]
[393868760,1763052640432,-132.16676765,0.00075,120]
[393868761,1763052640455,-4867.83323235,0.00075,120]
[393868762,1763052640465,-2502.38155235,0.00075199,2]
[393868763,1763052640479,-1779.89844765,0.00075199,2]
[393868764,1763052640488,-500.0,0.00075199,120]
[393868765,1763052640498,-1390.31574885,0.000752,120]
[393868766,1763052640512,-3609.68425115,0.000752,120]
[393868767,1763052640521,-2999.98,0.000752,120]
[393868768,1763052640531,-500.0,0.00076198,120]
[393868769,1763052640540,-500.0,0.00076198,120]
[393868770,1763052640550,-500.0,0.00076198,31]
[393868771,1763052640559,-500.0,0.00076198,120]
[393868772,1763052640568,-500.0,0.00076198,120]
[393868773,1763052640578,-500.0,0.00076198,31]
[393868774,1763052640588,-247.61578936,0.00076198,120]
[393868775,1763052640597,-500.0,0.00076198,31]
[393868776,1763052640607,-325.72406311,0.00076198,120]
[393868777,1763052640617,-500.0,0.00076198,31]
[393868778,1763052640627,-298.29601814,0.00076198,31]
[393868779,1763052640636,-500.0,0.00076198,31]
[393868780,1763052640646,-500.0,0.00076198,31]
[393868781,1763052640656,-500.0,0.00076198,31]
[393868782,1763052640666,-500.0,0.00076198,31]
[393868783,1763052640675,-4282.28,0.00076199,2]
[393868784,1763052640684,-566.44540834,0.00076199,120]
[393868785,1763052640694,-5000.0,0.000762,120]
[393868786,1763052640704,-4000.0,0.000762,120]
[393868787,1763052640714,-5000.0,0.000762,120]
[393868788,1763052640727,-500.0,0.00076788,120]
[393868789,1763052640737,-536.13127727,0.00076799,120]
[393868790,1763052640746,-220.10146076,0.000768,120]
[393868791,1763052640756,-13382.45,0.000768,79]
[393868792,1763052640768,-491.3475417,0.00076899,7]
[393868793,1763052640782,-1107.65543303,0.000769,60]
[393868794,1763052640798,-97120.86184247,0.000769,60]
[393868815,1763052643436,-3350.0,0.000769,60]
[393868832,1763052646360,-96716.08005077,0.000769,60]
[393868835,1763052646467,-12419.9523964,0.000769,60]
[393868836,1763052646479,-1100.58318734,0.000769,60]
[393868837,1763052646491,-657.76835311,0.000769,60]
[393868838,1763052646505,-1894.0123066,0.000769,60]
[393868839,1763052646516,-893.20068695,0.000769,60]
[393868845,1763052905353,-342.62170038,0.00039898,2]
[393868846,1763052905382,-379.0,0.00039997,5]
[393868847,1763052905408,-300.0,0.00039997,5]
[393868848,1763052905433,-5190.06,0.00039998,2]
[393868849,1763052905590,1200.0,0.00039997,5]
[393868850,1763052932016,160.35157279,0.00039998,4]
[393868851,1763053006583,4973.81,0.00039998,2]
[393868852,1763053098648,1000.0,0.00038063,20]
[393868858,1763053136024,2484.3903684,0.00037518,2]
[393868859,1763053165534,7223.7033412,0.00041,2]
[393868862,1763053329433,150.0,0.00041,2]
[393868863,1763053366824,1730.4250877,0.0003722,2]
[393869045,1763053747134,-1146.80409528,0.00043672,28]
[393869046,1763053747154,-231.48,0.00043764,14]
[393869047,1763053747174,-4766.57,0.00043764,2]
[393869048,1763053747193,-11134.05956372,0.00043765,12]
[393869081,1763053832254,-661.6,0.00043765,12]
[393869137,1763053838192,-1417.25,0.00043765,12]
[393869140,1763053838204,-1192.38614843,0.00043765,12]
[393869142,1763053838215,-1501.08898084,0.00043765,12]
[393869146,1763053838246,-541.09,0.00043765,12]
[393869148,1763053838257,-5552.52530701,0.00043765,12]
[393869150,1763053838267,-150.0,0.00043765,68]
[393869152,1763053838276,-500.0,0.00043771,31]
[393869154,1763053838285,-500.0,0.00043771,31]
[393869156,1763053838294,-500.0,0.00043771,31]
[393869158,1763053838304,-500.0,0.00043771,31]
[393869160,1763053838313,-500.0,0.00043771,31]
[393869162,1763053838323,-500.0,0.00043771,31]
[393869164,1763053838332,-507.10546114,0.00043771,31]
[393869166,1763053838342,-594.76615489,0.00043771,31]
[393869168,1763053838352,-500.0,0.00043771,31]
[393869170,1763053838361,-500.0,0.00043771,31]
[393869172,1763053838370,-500.0,0.00043771,31]
[393869174,1763053838379,-645.85163114,0.00043771,31]
[393869175,1763053838388,-500.0,0.00043771,31]
[393869177,1763053838399,-500.0,0.00043771,31]
[393869179,1763053838408,-500.0,0.00043771,31]
[393869181,1763053838417,-500.0,0.00043771,31]
[393869182,1763053838427,-474.51643752,0.00043771,31]
[393869183,1763053838436,-364.27206679,0.00043771,31]
[393869184,1763053838446,-500.0,0.00043771,31]
[393869185,1763053838455,-500.0,0.00043771,31]
[393869186,1763053838464,-500.0,0.00043771,31]
[393869187,1763053838473,-500.0,0.00043771,31]
[393869188,1763053838483,-500.0,0.00043771,31]
[393869189,1763053838492,-500.0,0.00043771,31]
[393869190,1763053838503,-500.0,0.00043771,31]
[393869191,1763053838512,-500.0,0.00043771,31]
[393869192,1763053838522,-500.0,0.00043771,31]
[393869193,1763053838532,-500.0,0.00043771,31]
[393869194,1763053838542,-500.0,0.00043771,31]
[393869195,1763053838552,-500.0,0.00043771,31]
[393869196,1763053838561,-322.57194113,0.00043771,31]
[393869197,1763053838571,-500.0,0.00043771,31]
[393869198,1763053838581,-500.0,0.00043771,31]
[393869199,1763053838590,-500.0,0.00043771,31]
[393869200,1763053838600,-500.0,0.00043771,31]
[393869201,1763053838610,-500.0,0.00043771,31]
[393869202,1763053838620,-4766.57,0.00043771,2]
[393869203,1763053838630,-14399.42211327,0.00043772,2]
[393869204,1763053838640,-258.56749383,0.00043772,3]
[393869205,1763053838650,-4766.57,0.00043773,2]
[393869206,1763053838660,-22000.0,0.00043774,12]
[393869207,1763053838669,-4766.57,0.00043782,2]
[393869208,1763053838679,-13322.05667306,0.00043782,12]
[393869223,1763053841196,-6788.16971028,0.00043782,12]
[393869254,1763053843531,-172.42,0.00043772,10]
[393869256,1763053843540,-242.65431893,0.00043782,12]
[393869257,1763053843640,-1647.11929773,0.00043782,12]
[393869258,1763053843651,-258.56749383,0.00043789,3]
[393869260,1763053843661,-150.0,0.0004379,120]
[393869262,1763053843670,-1660.31799306,0.0004379,2]
[393869271,1763053843745,-631.979486,0.0004379,2]
[393869273,1763053843758,-2474.27252094,0.0004379,2]
[393869275,1763053843767,-4766.57,0.0004379,2]
[393869277,1763053843776,-22000.0,0.00043791,12]
[393869279,1763053843785,-500.0,0.00043791,12]
[393869281,1763053843795,-4293.12585935,0.00043799,2]
[393869419,1763053846569,-473.44414065,0.00043799,2]
[393869420,1763053846578,-7657.58372646,0.000438,12]
[393869421,1763053846680,-333.0,0.000438,12]
[393869422,1763053871291,200.0,0.0004,120]
[393869423,1763053874726,200.0,0.0004,120]
[393869424,1763053882600,200.0,0.0004,120]
[393869425,1763053894858,200.0,0.0004,120]
[393869428,1763053906886,200.0,0.0004,120]
[393869429,1763053917876,1056.79747694,0.00022943,2]
[393869430,1763053918497,1056.79747694,0.0002809,2]
[393869431,1763053919154,1056.79747694,0.00033238,2]
[393869432,1763053919827,1056.79747694,0.00038386,2]
[393869434,1763053943220,200.0,0.0004,120]
[393869435,1763053958499,635.69777969,0.00022943,2]
[393869436,1763053959825,635.69777969,0.00029828,2]
[393869437,1763053960201,578.73416277,0.00036714,2]
[393869438,1763053960228,56.96361692,0.00036714,2]
[393869440,1763053967606,245.2265297,0.0004,120]
[393869441,1763053993347,300.0,0.0004,20]
[393869442,1763053997355,904.1588762,0.00038874,2]
[393869443,1763054002998,300.0,0.0004,20]
[393869449,1763054012819,300.0,0.0004,7]
[393869452,1763054023169,300.0,0.0004,7]
[393869463,1763054033428,300.0,0.0004,2]
[393869464,1763054037970,220.0,0.00035,2]
[393869465,1763054043090,300.0,0.0004,2]
[393869466,1763054047305,196.0,0.00035,120]
[393869467,1763054052270,300.0,0.00035,20]
[393869470,1763054061798,300.0,0.00035,7]
[393869473,1763054071470,250.0,0.0004,120]
[393869474,1763054071502,270.0,0.00035,2]
[393869502,1763054093218,228.66925713,0.00030876,2]
[393869508,1763054152335,12817.30001967,0.0004,120]
[393869509,1763054174810,400.28388004,0.00039,2]
[393869510,1763054175296,400.28388004,0.00038069,20]
[393869511,1763054176491,400.28388004,0.0003288,120]
[393869512,1763054296179,888.26557279,0.00022943,2]
[393869513,1763054296881,888.26557279,0.00029729,2]
[393869514,1763054297500,522.53342984,0.00036515,2]
[393869515,1763054297526,365.73214295,0.00036515,2]
[393869516,1763054384008,354.07443687,0.00031261,2]
[393869517,1763054384408,722.41986347,0.00038549,2]
[393869518,1763054405168,5061.02487846,0.00031526,34]
[393869519,1763054408953,-300.0,0.00039999,5]
[393869520,1763054424505,-300.69357695,0.00039999,5]
[393869521,1763054465792,629.99999901,0.00038124,120]
[393869524,1763054473076,165.573964,0.00013699,2]
[393869525,1763054473289,165.573964,0.00023182,2]
[393869526,1763054473520,165.573964,0.00032666,2]
[393869527,1763054476202,806.5668129,0.00038034,2]
[393869528,1763054605749,-343.84510446,0.00039998,5]
[393869529,1763054615468,229.407524,0.00038118,2]
[393869534,1763054618960,-256.15489554,0.00039998,5]
[393869535,1763054618983,-156.44148476,0.00039998,5]
[393869538,1763054621889,-210.3783413,0.00039998,5]
[393869539,1763054623237,-33.18017394,0.00039998,5]
[393869540,1763054623263,-293.38974418,0.00039999,5]
[393869547,1763054627824,-6.61025582,0.00039999,5]
[393869548,1763054627846,-284.97796744,0.00039999,5]
[393869549,1763054631293,-170.80377826,0.00039999,5]
[393869680,1763054814007,-214.79032911,0.00039899,2]
[393869681,1763054814033,-129.76023789,0.0003999,10]
[393869684,1763054818506,-194.550567,0.0003999,10]
[393869686,1763054858975,-246.25,0.00039987,10]
[393869687,1763054859001,-343.64113867,0.00039995,5]
[393869688,1763054862070,-56.35886133,0.00039995,5]
[393869689,1763054862092,-225.6286586,0.00039996,31]
[393869690,1763054862114,-18.01248007,0.00039996,31]
[393869694,1763054873957,-205.2,0.00039987,10]
[393869695,1763054873983,-33.12672671,0.00039995,5]
[393869696,1763054877727,-161.68,0.00039987,3]
[393869697,1763054877749,-15.99458026,0.00039987,10]
[393869698,1763054888964,-209.14531167,0.00039987,3]
[393869700,1763054896310,275.32221855,0.00021,2]
[393869701,1763054903364,398.87695423,0.0002,2]
[393869702,1763054903923,-264.4359802,0.00039987,3]
[393869703,1763054904440,359.43262845,0.00022,2]
[393869704,1763054906136,1294.66627778,0.0002,2]
[393869705,1763054907089,-169.01444412,0.00039896,2]
[393869706,1763054908260,452.08800767,0.00025,7]
[393869707,1763054912069,-223.08686175,0.00039896,2]
[393869708,1763054913952,7753.66624016,0.00026,30]
[393869709,1763054913976,24766.317426,0.00026,30]
[393869710,1763054914000,24704.78277369,0.00026,30]
[393869711,1763054914024,20725.78045355,0.00026,30]
[393869712,1763054915619,-289.17869704,0.00039896,2]
[393869714,1763054918377,-158.86447604,0.00039896,2]
[393869722,1763054922851,751.0,0.00021,2]
[393869723,1763054923505,-163.30910442,0.00039896,2]
[393869724,1763054923528,-11.48870813,0.00039987,3]
[393869725,1763054923553,-32.07564602,0.00039987,10]
[393869728,1763054948446,-400.0,0.0003813,2]
[393869729,1763054948468,-200.0,0.000384,120]
[393869730,1763054948489,-162.99,0.00039987,10]
[393869731,1763054948512,-500.0,0.00039995,31]
[393869732,1763054948540,-500.0,0.00039995,31]
[393869733,1763054948563,-500.0,0.00039995,31]
[393869734,1763054948584,-500.0,0.00039995,31]
[393869735,1763054948608,-500.0,0.00039995,7]
[393869736,1763054948630,-500.0,0.00039995,31]
[393869737,1763054948653,-500.0,0.00039995,31]
[393869738,1763054948673,-550.65527595,0.00039995,31]
[393869739,1763054948694,-571.93397888,0.00039995,31]
[393869740,1763054948720,-500.0,0.00039995,7]
[393869741,1763054948742,-500.0,0.00039995,31]
[393869742,1763054948766,-500.0,0.00039995,31]
[393869743,1763054948790,-500.0,0.00039995,31]
[393869744,1763054948818,-500.0,0.00039995,31]
[393869745,1763054948843,-500.0,0.00039995,7]
[393869746,1763054948863,-500.0,0.00039995,31]
[393869747,1763054948888,-192.92953452,0.00039995,31]
[393869748,1763054948914,-609.36319233,0.00039995,31]
[393869749,1763054948940,-500.0,0.00039995,31]
[393869750,1763054948970,-500.0,0.00039995,7]
[393869751,1763054948995,-500.0,0.00039995,31]
[393869752,1763054949020,-500.0,0.00039995,31]
[393869753,1763054949046,-500.0,0.00039995,31]
[393869754,1763054949071,-475.35606191,0.00039995,31]
[393869755,1763054949100,-500.0,0.00039995,7]
[393869756,1763054949123,-500.0,0.00039995,31]
[393869757,1763054949147,-500.0,0.00039995,31]
[393869758,1763054949172,-500.0,0.00039995,31]
[393869759,1763054949198,-500.0,0.00039995,7]
[393869760,1763054949223,-500.0,0.00039995,31]
[393869761,1763054949249,-500.0,0.00039995,7]
[393869762,1763054949273,-500.0,0.00039995,31]
[393869763,1763054949295,-500.0,0.00039995,31]
[393869764,1763054949320,-500.0,0.00039995,31]
[393869765,1763054949345,-500.0,0.00039995,7]
[393869766,1763054949370,-500.0,0.00039995,7]
[393869767,1763054949394,-500.0,0.00039995,7]
[393869768,1763054949420,-500.0,0.00039995,7]
[393869769,1763054949446,-500.0,0.00039995,7]
[393869770,1763054949475,-500.0,0.00039995,7]
[393869771,1763054949500,-500.0,0.00039995,7]
[393869772,1763054949525,-500.0,0.00039995,7]
[393869773,1763054949551,-500.0,0.00039995,7]
[393869774,1763054949574,-500.0,0.00039995,7]
[393869775,1763054949599,-500.0,0.00039995,7]
[393869776,1763054949625,-500.0,0.00039995,7]
[393869777,1763054949655,-500.0,0.00039995,7]
[393869778,1763054949681,-500.0,0.00039995,7]
[393869779,1763054949706,-500.0,0.00039995,7]
[393869780,1763054949732,-500.0,0.00039995,7]
[393869781,1763054949755,-500.0,0.00039995,7]
[393869782,1763054949779,-500.0,0.00039995,7]
[393869783,1763054949805,-500.0,0.00039995,7]
[393869784,1763054949831,-500.0,0.00039995,7]
[393869785,1763054949856,-500.0,0.00039995,7]
[393869786,1763054949881,-500.0,0.00039995,7]
[393869787,1763054949906,-500.0,0.00039995,7]
[393869788,1763054949928,-500.0,0.00039995,7]
[393869789,1763054949953,-500.0,0.00039995,7]
[393869790,1763054949977,-500.0,0.00039995,7]
[393869791,1763054950001,-500.0,0.00039995,7]
[393869792,1763054950026,-500.0,0.00039995,7]
[393869793,1763054950052,-500.0,0.00039995,7]
[393869794,1763054950076,-500.0,0.00039995,7]
[393869795,1763054950100,-500.0,0.00039995,7]
[393869796,1763054950124,-500.0,0.00039995,7]
[393869797,1763054950148,-500.0,0.00039995,7]
[393869798,1763054950172,-500.0,0.00039995,7]
[393869799,1763054950197,-500.0,0.00039995,7]
[393869800,1763054950222,-500.0,0.00039995,7]
[393869801,1763054950248,-500.0,0.00039995,7]
[393869802,1763054950273,-500.0,0.00039995,7]
[393869803,1763054950300,-586.59108557,0.00039995,7]
[393869804,1763054950332,-500.0,0.00039995,7]
[393869805,1763054950517,-500.0,0.00039995,7]
[393869806,1763054950542,-500.0,0.00039995,7]
[393869807,1763054950566,-500.0,0.00039995,7]
[393869808,1763054950590,-500.0,0.00039995,7]
[393869809,1763054950612,-1166.87327329,0.00039995,5]
[393869810,1763054950632,-41741.95138406,0.00039996,2]
[393869811,1763054950653,-343.94327919,0.00039996,7]
[393869812,1763054950673,-71580.75064957,0.00039997,2]
[393869889,1763054961208,-499.99999999,0.00039995,31]
[393869890,1763054961231,-500.0,0.00039995,7]
[393869891,1763054961259,-500.0,0.00039995,7]
[393869892,1763054961283,-500.0,0.00039995,7]
[393869893,1763054961306,-500.0,0.00039995,7]
[393869894,1763054961330,-500.0,0.00039995,7]
[393869895,1763054961353,-500.0,0.00039995,7]
[393869896,1763054961375,-500.0,0.00039995,7]
[393869897,1763054961397,-500.0,0.00039995,7]
[393869898,1763054961420,-500.0,0.00039995,7]
[393869899,1763054961445,-500.0,0.00039995,7]
[393869901,1763054961472,-500.0,0.00039995,7]
[393869902,1763054961498,-500.0,0.00039995,7]
[393869903,1763054961523,-500.0,0.00039995,7]
[393869904,1763054961548,-500.0,0.00039995,7]
[393869905,1763054961572,-500.0,0.00039995,7]
[393869906,1763054961596,-400.00000001,0.00039995,7]
[393869908,1763054961620,-500.0,0.00039995,7]
[393869909,1763054961644,-500.0,0.00039995,7]
[393869910,1763054961667,-500.0,0.00039995,7]
[393869911,1763054961691,-500.0,0.00039995,7]
[393869912,1763054961711,-22083.08875208,0.00039997,2]
[393869913,1763054961731,-1600.0,0.00039998,5]
[393869914,1763054961751,-300.0,0.00039999,5]
[393869915,1763054961778,-7986.33690799,0.0004,120]
[393869916,1763054961798,-226.91974373,0.0004047,2]
[393869917,1763054961817,-560.0,0.00040751,5]
[393869918,1763054961835,-323.36,0.00041357,3]
[393869919,1763054961854,-279.39,0.0004169,30]
[393869920,1763054961874,-232.82,0.0004169,30]
[393869921,1763054961895,-194.02,0.0004169,30]
[393869922,1763054961914,-329.43474587,0.000417,10]
[393869923,1763054961935,-160.0,0.00042073,2]
[393869924,1763054961955,-335.26,0.00042079,30]
[393869925,1763054961976,-482.78,0.00042088,30]
[393869926,1763054961996,-402.32,0.00042088,30]
[393869927,1763054962016,-1729.89,0.00042089,30]
[393869928,1763054962036,-1441.57,0.00042089,30]
[393869929,1763054962055,-1201.31,0.00042089,30]
[393869930,1763054962076,-1001.09,0.00042089,30]
[393869931,1763054962095,-834.24,0.00042089,30]
[393869932,1763054962115,-695.2,0.00042089,30]
[393869933,1763054962136,-579.34,0.00042089,30]
[393869934,1763054962157,-167.19,0.00042099,30]
[393869935,1763054962178,-165.571,0.000421,63]
[393869936,1763054962198,-165.573964,0.0004215,2]
[393869937,1763054962217,-167.19047431,0.00042373,30]
[393869938,1763054962239,-168.0,0.00042586,7]
[393869939,1763054962260,-260.0,0.00042621,2]
[393869940,1763054962284,-177.0,0.00042666,2]
[393869941,1763054962305,-1159.0,0.00042821,5]
[393869942,1763054962326,-4233.31517755,0.00042988,2]
[393869943,1763054962347,-168.0,0.00042989,2]
[393869944,1763054962367,-500.0,0.00043117,10]
[393869945,1763054962387,-500.0,0.00043117,10]
[393869946,1763054962408,-240.0,0.00043169,2]
[393869947,1763054962429,-150.0,0.00043211,120]
[393869948,1763054962450,-175.0,0.00043214,7]
[393869949,1763054962474,-168.0,0.00043237,2]
[393869950,1763054962494,-2224.15130974,0.00043273,2]
[393869951,1763054962516,-888.26557279,0.00043301,2]
[393869952,1763054962538,-168.0,0.00043368,120]
[393869953,1763054962560,-1968.35218151,0.00043397,2]
[393869954,1763054962579,-500.0,0.00043406,2]
[393869955,1763054962599,-3445.18,0.00043406,2]
[393869956,1763054962618,-3445.18,0.00043406,2]
[393869957,1763054962637,-164.1545344,0.00043406,120]
[393869958,1763054962658,-168.0,0.00043407,30]
[393869959,1763054962679,-168.0,0.00043419,2]
[393869960,1763054962698,-2224.15130975,0.00043473,2]
[393869961,1763054962718,-168.0,0.00043474,2]
[393869962,1763054962739,-175.0,0.00043499,2]
[393869963,1763054962761,-783.0,0.00043553,5]
[393869964,1763054962782,-168.0,0.00043614,7]
[393869965,1763054962801,-1000.0,0.00043665,10]
[393869966,1763054962820,-1762.9960517,0.00043754,2]
[393869967,1763054962840,-400.28388004,0.00043756,2]
[393869968,1763054962860,-3445.18,0.00043763,2]
[393869969,1763054962880,-3445.18,0.00043781,2]
[393869970,1763054962900,-899.4964135,0.00043782,2]
[393869971,1763054962921,-1000.0,0.00043782,2]
[393869972,1763054962941,-1000.0,0.00043782,2]
[393869973,1763054962961,-1000.0,0.00043782,2]
[393869974,1763054962981,-1000.0,0.00043782,2]
[393869975,1763054963002,-1000.0,0.00043782,2]
[393869976,1763054963022,-1000.0,0.00043782,2]
[393869977,1763054963044,-151.0,0.00043782,120]
[393869978,1763054963066,-151.0,0.00043782,120]
[393869979,1763054963089,-151.0,0.00043782,120]
[393869980,1763054963111,-151.0,0.00043782,120]
[393869981,1763054963134,-280.29104,0.00043782,120]
[393869982,1763054963156,-151.0,0.00043782,120]
[393869983,1763054963178,-151.0,0.00043782,120]
[393869984,1763054963200,-151.0,0.00043782,120]
[393869985,1763054963222,-162.624441,0.00043782,120]
[393869986,1763054963243,-304.31227276,0.00043786,3]
[393869987,1763054963266,-3445.18,0.00043799,2]
[393869988,1763054963295,-209.40437684,0.00043799,12]
[393869989,1763054963323,-217.15233878,0.00043799,12]
[393869990,1763054963345,-225.18697532,0.00043799,12]
[393869991,1763054963368,-233.51889341,0.00043799,12]
[393869992,1763054963389,-242.15909246,0.00043799,12]
[393869993,1763054963410,-251.11897888,0.00043799,12]
[393869994,1763054963433,-260.4103811,0.00043799,12]
[393869995,1763054963455,-270.0455652,0.00043799,12]
[393869996,1763054963482,-280.03725112,0.00043799,12]
[393869997,1763054963505,-290.39862941,0.00043799,12]
[393869998,1763054963675,-301.1433787,0.00043799,12]
[393869999,1763054963696,-14009.41627354,0.000438,12]
[393870000,1763054963717,-175.7,0.000438,14]
[393870001,1763054963739,-945.0,0.000438,14]
[393870002,1763054963761,-208.54,0.000438,30]
[393870003,1763054963784,-1500.0,0.00044213,10]
[393870004,1763054963807,-175.0,0.00044242,120]
[393870005,1763054963830,-168.0,0.00044577,2]
[393870006,1763054963853,-168.0,0.00044733,2]
[393870007,1763054963876,-2000.0,0.00044761,10]
[393870008,1763054963900,-175.0,0.00045163,7]
[393870009,1763054963922,-177.0,0.00045211,120]
[393870010,1763054963946,-168.0,0.00045223,2]
[393870011,1763054963969,-2500.0,0.00045308,10]